[Event "Late-Titled-Tuesday-Blitz-March-05-2024"]
[Site "Chess.com"]
[Date "2024.03.05"]
[Round "11"]
[White "Supelyel"]
[Black "N_Mullodzhanov"]
[Result "1-0"]
[WhiteElo "2403"]
[BlackElo "2491"]
[TimeControl "180+1"]
[EndTime "16:02:05 PST"]
[Termination "Supelyel won by checkmate"]

1. c4 {[%clk 0:03:00.9]} 1... e5 {[%clk 0:02:59.3]} 2. Nc3 {[%clk 0:03:00.2]}
2... Nf6 {[%clk 0:02:59.5]} 3. g3 {[%clk 0:03:00.5]} 3... c6 {[%clk 0:02:58.3]}
4. Nf3 {[%clk 0:03:00.2]} 4... Qc7 {[%clk 0:02:55.9]} 5. Bg2 {[%clk 0:02:57.9]}
5... d5 {[%clk 0:02:55.8]} 6. cxd5 {[%clk 0:02:50.8]} 6... cxd5 {[%clk 0:02:56]}
7. O-O {[%clk 0:02:43.5]} 7... d4 {[%clk 0:02:51.6]} 8. Nb5 {[%clk 0:02:37.2]}
8... Qc5 {[%clk 0:02:49]} 9. a4 {[%clk 0:02:33.1]} 9... a6 {[%clk 0:02:47]} 10.
b4 {[%clk 0:02:20.2]} 10... Qe7 {[%clk 0:02:34.5]} 11. Na3 {[%clk 0:02:16.5]}
11... Nc6 {[%clk 0:02:29.3]} 12. b5 {[%clk 0:02:16.6]} 12... axb5 {[%clk
0:02:24.9]} 13. Nxb5 {[%clk 0:02:15.4]} 13... g6 {[%clk 0:02:22]} 14. Ba3 {[%clk
0:02:14.5]} 14... Qd8 {[%clk 0:02:13.3]} 15. Qc2 {[%clk 0:01:44.2]} 15... Bf5
{[%clk 0:02:10.2]} 16. Qb2 {[%clk 0:01:09]} 16... Rxa4 {[%clk 0:02:03.1]} 17.
Nh4 {[%clk 0:00:33.9]} 17... Bxa3 {[%clk 0:01:57.9]} 18. Rxa3 {[%clk 0:00:32.1]}
18... Rb4 {[%clk 0:01:55.3]} 19. Bxc6+ {[%clk 0:00:27.3]} 19... bxc6 {[%clk
0:01:56.2]} 20. Qxb4 {[%clk 0:00:27.7]} 20... cxb5 {[%clk 0:01:53.5]} 21. Nxf5
{[%clk 0:00:27.7]} 21... gxf5 {[%clk 0:01:53.7]} 22. Qxb5+ {[%clk 0:00:26.2]}
22... Nd7 {[%clk 0:01:54]} 23. Qb4 {[%clk 0:00:24.6]} 23... f6 {[%clk
0:01:47.2]} 24. Rc1 {[%clk 0:00:23.5]} 24... Kf7 {[%clk 0:01:46.2]} 25. Ra7
{[%clk 0:00:23.6]} 25... Re8 {[%clk 0:01:27.5]} 26. Rcc7 {[%clk 0:00:22.3]}
26... Re7 {[%clk 0:01:27.8]} 27. Qd6 {[%clk 0:00:22.5]} 27... Ke8 {[%clk
0:01:22.8]} 28. h4 {[%clk 0:00:22.2]} 28... h5 {[%clk 0:01:21]} 29. d3 {[%clk
0:00:22]} 29... Rf7 {[%clk 0:01:17.7]} 30. Qe6+ {[%clk 0:00:19.7]} 30... Re7
{[%clk 0:01:16.8]} 31. Qxf5 {[%clk 0:00:19.8]} 31... Rg7 {[%clk 0:01:07]} 32.
Qxh5+ {[%clk 0:00:18.2]} 32... Kf8 {[%clk 0:01:03.8]} 33. Qh8+ {[%clk
0:00:18.3]} 33... Rg8 {[%clk 0:01:03.2]} 34. Rxd7 {[%clk 0:00:16.4]} 34... Qxd7
{[%clk 0:00:58.5]} 35. Qxg8+ {[%clk 0:00:15.8]} 35... Kxg8 {[%clk 0:00:58.2]}
36. Rxd7 {[%clk 0:00:16.7]} 36... f5 {[%clk 0:00:58.3]} 37. Rd5 {[%clk
0:00:16.5]} 37... Kf7 {[%clk 0:00:58.6]} 38. Rxe5 {[%clk 0:00:16.8]} 38... Kf6
{[%clk 0:00:59.5]} 39. Rd5 {[%clk 0:00:17.3]} 39... Ke6 {[%clk 0:01:00]} 40. Rc5
{[%clk 0:00:18.2]} 40... Kd6 {[%clk 0:01:00.3]} 41. Rc4 {[%clk 0:00:19.1]} 41...
Kd5 {[%clk 0:01:00.6]} 42. Kg2 {[%clk 0:00:20]} 42... Ke5 {[%clk 0:01:00.9]} 43.
Kf3 {[%clk 0:00:20.9]} 43... Kd5 {[%clk 0:01:01.7]} 44. g4 {[%clk 0:00:21.6]}
44... Ke5 {[%clk 0:01:02.6]} 45. gxf5 {[%clk 0:00:22.5]} 45... Kxf5 {[%clk
0:01:03]} 46. Rxd4 {[%clk 0:00:23.2]} 46... Kg6 {[%clk 0:01:03.9]} 47. Re4
{[%clk 0:00:24.1]} 47... Kh5 {[%clk 0:01:04.7]} 48. Rg4 {[%clk 0:00:24.8]} 48...
Kh6 {[%clk 0:01:05.1]} 49. Kf4 {[%clk 0:00:25.5]} 49... Kh7 {[%clk 0:01:06]} 50.
Kf5 {[%clk 0:00:26.2]} 50... Kh6 {[%clk 0:01:06.9]} 51. Kf6 {[%clk 0:00:26.8]}
51... Kh5 {[%clk 0:01:07.8]} 52. Rg5+ {[%clk 0:00:27.1]} 52... Kxh4 {[%clk
0:01:07.5]} 53. Rg3 {[%clk 0:00:27.6]} 53... Kh5 {[%clk 0:01:07.7]} 54. Kf5
{[%clk 0:00:28.5]} 54... Kh4 {[%clk 0:01:07.7]} 55. Rf3 {[%clk 0:00:29]} 55...
Kh5 {[%clk 0:01:07.9]} 56. Rh3# {[%clk 0:00:29.3]} 1-0

[Event "Late-Titled-Tuesday-Blitz-March-05-2024"]
[Site "Chess.com"]
[Date "2024.03.05"]
[Round "11"]
[White "Alexei_Gubajdullin"]
[Black "aceontheturn"]
[Result "1-0"]
[WhiteElo "2652"]
[BlackElo "2778"]
[TimeControl "180+1"]
[EndTime "16:02:09 PST"]
[Termination "Alexei_Gubajdullin won on time"]

1. Nf3 {[%clk 0:03:00.9]} 1... g6 {[%clk 0:02:58.9]} 2. g3 {[%clk 0:03:01.2]}
2... Bg7 {[%clk 0:02:59.1]} 3. Bg2 {[%clk 0:03:01.7]} 3... e5 {[%clk 0:02:59.1]}
4. d3 {[%clk 0:03:00.3]} 4... d6 {[%clk 0:02:58]} 5. O-O {[%clk 0:03:00.2]} 5...
Ne7 {[%clk 0:02:58.7]} 6. e4 {[%clk 0:02:59.5]} 6... O-O {[%clk 0:02:59.2]} 7.
Nc3 {[%clk 0:02:55.1]} 7... c5 {[%clk 0:02:59.9]} 8. Nh4 {[%clk 0:02:52.7]} 8...
Nbc6 {[%clk 0:02:58.3]} 9. f4 {[%clk 0:02:52.4]} 9... exf4 {[%clk 0:02:56.8]}
10. gxf4 {[%clk 0:02:52.4]} 10... f5 {[%clk 0:02:54.2]} 11. Nf3 {[%clk
0:02:46.5]} 11... h6 {[%clk 0:02:53]} 12. Kh1 {[%clk 0:02:44.3]} 12... Be6
{[%clk 0:02:53.5]} 13. Be3 {[%clk 0:02:42.5]} 13... b6 {[%clk 0:02:51.2]} 14. d4
{[%clk 0:02:33.6]} 14... fxe4 {[%clk 0:02:47.1]} 15. Nxe4 {[%clk 0:02:32.7]}
15... Nf5 {[%clk 0:02:47.6]} 16. Bg1 {[%clk 0:02:32.4]} 16... cxd4 {[%clk
0:02:38.4]} 17. c3 {[%clk 0:02:24]} 17... d5 {[%clk 0:02:35.6]} 18. Ng3 {[%clk
0:02:23.9]} 18... dxc3 {[%clk 0:02:12.7]} 19. bxc3 {[%clk 0:02:20.9]} 19... Rc8
{[%clk 0:02:13.2]} 20. Qd3 {[%clk 0:02:08.8]} 20... Qf6 {[%clk 0:01:55.5]} 21.
Rae1 {[%clk 0:02:06]} 21... Rfe8 {[%clk 0:01:48.8]} 22. Ne5 {[%clk 0:02:05.1]}
22... Nce7 {[%clk 0:01:28.3]} 23. Re2 {[%clk 0:01:49.9]} 23... h5 {[%clk
0:01:20.6]} 24. Rfe1 {[%clk 0:01:47.4]} 24... h4 {[%clk 0:01:18.4]} 25. Nf1
{[%clk 0:01:44]} 25... Nd6 {[%clk 0:01:01.8]} 26. Nc6 {[%clk 0:01:27]} 26...
Nxc6 {[%clk 0:00:53.8]} 27. Rxe6 {[%clk 0:01:26.5]} 27... Rxe6 {[%clk
0:00:53.3]} 28. Rxe6 {[%clk 0:01:26.5]} 28... Qxf4 {[%clk 0:00:39.4]} 29. Qxd5
{[%clk 0:01:21.8]} 29... Nf7 {[%clk 0:00:37.3]} 30. Rxc6 {[%clk 0:01:20.9]}
30... Rxc6 {[%clk 0:00:35.7]} 31. Qxc6 {[%clk 0:01:21.1]} 31... Ne5 {[%clk
0:00:25.6]} 32. Qd5+ {[%clk 0:01:16]} 32... Kh7 {[%clk 0:00:25.7]} 33. Qe4
{[%clk 0:01:12]} 33... Qg5 {[%clk 0:00:18.7]} 34. Be3 {[%clk 0:01:10.9]} 34...
Qh5 {[%clk 0:00:19.4]} 35. h3 {[%clk 0:01:07.3]} 35... Bf6 {[%clk 0:00:08.9]}
36. Bd4 {[%clk 0:01:06.3]} 36... Kg7 {[%clk 0:00:08.9]} 37. Ne3 {[%clk
0:01:05.6]} 37... Qg5 {[%clk 0:00:04.9]} 38. Nd5 {[%clk 0:00:59.9]} 1-0

[Event "Late-Titled-Tuesday-Blitz-March-05-2024"]
[Site "Chess.com"]
[Date "2024.03.05"]
[Round "11"]
[White "djano"]
[Black "GianmarcoVaR"]
[Result "1-0"]
[WhiteElo "2587"]
[BlackElo "2746"]
[TimeControl "180+1"]
[EndTime "16:02:14 PST"]
[Termination "djano won by resignation"]

1. e4 {[%clk 0:03:00.9]} 1... c5 {[%clk 0:02:59.1]} 2. Nc3 {[%clk 0:03:00.4]}
2... d6 {[%clk 0:02:58.2]} 3. f4 {[%clk 0:03:00.4]} 3... g6 {[%clk 0:02:58.2]}
4. Nf3 {[%clk 0:03:00.5]} 4... Bg7 {[%clk 0:02:58.9]} 5. Bc4 {[%clk 0:03:00.5]}
5... Nc6 {[%clk 0:02:58.9]} 6. O-O {[%clk 0:03:00.3]} 6... e6 {[%clk 0:02:58.8]}
7. d4 {[%clk 0:03:00.4]} 7... cxd4 {[%clk 0:02:54.7]} 8. Nb5 {[%clk 0:02:59.6]}
8... Nge7 {[%clk 0:02:52.6]} 9. Bb3 {[%clk 0:02:59]} 9... O-O {[%clk 0:02:45.9]}
10. Nbxd4 {[%clk 0:02:59.1]} 10... a6 {[%clk 0:02:36.8]} 11. c3 {[%clk
0:02:50.6]} 11... b5 {[%clk 0:02:12.7]} 12. Be3 {[%clk 0:02:32.8]} 12... Na5
{[%clk 0:02:08.2]} 13. Qe1 {[%clk 0:02:11.8]} 13... e5 {[%clk 0:01:46.5]} 14.
fxe5 {[%clk 0:02:03.8]} 14... dxe5 {[%clk 0:01:46]} 15. Ne2 {[%clk 0:01:49.2]}
15... Nxb3 {[%clk 0:01:16.3]} 16. axb3 {[%clk 0:01:50.1]} 16... f5 {[%clk
0:01:15.3]} 17. Bg5 {[%clk 0:01:41.6]} 17... h6 {[%clk 0:01:08.2]} 18. Be3
{[%clk 0:01:19.8]} 18... Bb7 {[%clk 0:00:52.4]} 19. exf5 {[%clk 0:01:04.5]}
19... gxf5 {[%clk 0:00:52.8]} 20. Bc5 {[%clk 0:00:57.1]} 20... Qc7 {[%clk
0:00:46.3]} 21. b4 {[%clk 0:00:56.7]} 21... Rf6 {[%clk 0:00:32.4]} 22. Ng3
{[%clk 0:00:53.5]} 22... Re8 {[%clk 0:00:17.6]} 23. Qxe5 {[%clk 0:00:51.5]}
23... Qxe5 {[%clk 0:00:15.7]} 24. Nxe5 {[%clk 0:00:52.4]} 24... f4 {[%clk
0:00:03.7]} 25. Nh5 {[%clk 0:00:49.4]} 25... Rf5 {[%clk 0:00:03.7]} 26. Nxg7
{[%clk 0:00:49.9]} 26... Rxe5 {[%clk 0:00:04.3]} 27. Nxe8 {[%clk 0:00:49.1]}
27... Nd5 {[%clk 0:00:03.8]} 28. Nd6 {[%clk 0:00:47.1]} 28... Bc6 {[%clk
0:00:02.5]} 29. Rae1 {[%clk 0:00:46.3]} 29... Rg5 {[%clk 0:00:01.5]} 30. Ne4
{[%clk 0:00:45.8]} 30... Rg6 {[%clk 0:00:01.4]} 31. Rf2 {[%clk 0:00:45]} 31...
Ne3 {[%clk 0:00:01.2]} 32. Bxe3 {[%clk 0:00:44.2]} 32... fxe3 {[%clk 0:00:01.9]}
33. Rxe3 {[%clk 0:00:42.5]} 33... Kg7 {[%clk 0:00:01.8]} 1-0

[Event "Late-Titled-Tuesday-Blitz-March-05-2024"]
[Site "Chess.com"]
[Date "2024.03.05"]
[Round "11"]
[White "Arystanner"]
[Black "Heydarli77"]
[Result "1-0"]
[WhiteElo "2843"]
[BlackElo "2431"]
[TimeControl "180+1"]
[EndTime "16:02:17 PST"]
[Termination "Arystanner won by resignation"]

1. e4 {[%clk 0:03:00.9]} 1... c5 {[%clk 0:02:58.4]} 2. Nf3 {[%clk 0:03:01.1]}
2... e6 {[%clk 0:02:56.2]} 3. c3 {[%clk 0:03:00.5]} 3... d5 {[%clk 0:02:54.3]}
4. e5 {[%clk 0:03:01]} 4... Nc6 {[%clk 0:02:52.3]} 5. d4 {[%clk 0:03:01.1]} 5...
Qb6 {[%clk 0:02:48.4]} 6. Bd3 {[%clk 0:03:00.6]} 6... cxd4 {[%clk 0:02:46.6]} 7.
O-O {[%clk 0:03:00.4]} 7... dxc3 {[%clk 0:02:45.5]} 8. Nxc3 {[%clk 0:02:59.7]}
8... Bd7 {[%clk 0:02:42.9]} 9. Re1 {[%clk 0:03:00]} 9... a6 {[%clk 0:02:42]} 10.
a3 {[%clk 0:02:55.1]} 10... Nge7 {[%clk 0:02:38.5]} 11. b4 {[%clk 0:02:54.8]}
11... Ng6 {[%clk 0:02:34.6]} 12. h4 {[%clk 0:02:55.2]} 12... Qc7 {[%clk
0:02:32.3]} 13. Qe2 {[%clk 0:02:44.1]} 13... Nxb4 {[%clk 0:02:23.1]} 14. axb4
{[%clk 0:02:44.7]} 14... Qxc3 {[%clk 0:02:23.2]} 15. Bd2 {[%clk 0:02:45.5]}
15... Qc7 {[%clk 0:02:20.8]} 16. h5 {[%clk 0:02:46.2]} 16... Ne7 {[%clk
0:02:19.8]} 17. b5 {[%clk 0:02:45.3]} 17... a5 {[%clk 0:02:05]} 18. Rec1 {[%clk
0:02:45.4]} 18... Qd8 {[%clk 0:02:00]} 19. Nd4 {[%clk 0:02:46]} 19... Nc8 {[%clk
0:01:58]} 20. Qg4 {[%clk 0:02:43.4]} 20... g6 {[%clk 0:01:47.6]} 21. Qh3 {[%clk
0:02:33.7]} 21... g5 {[%clk 0:01:44.2]} 22. h6 {[%clk 0:02:32.5]} 22... Be7
{[%clk 0:01:43.1]} 23. Ra4 {[%clk 0:02:29.4]} 23... Nb6 {[%clk 0:01:42.3]} 24.
Bxa5 {[%clk 0:02:29.7]} 24... Rxa5 {[%clk 0:01:37.6]} 25. Rxa5 {[%clk 0:02:30]}
25... Nc4 {[%clk 0:01:36.9]} 26. Ra7 {[%clk 0:02:23.2]} 26... Nxe5 {[%clk
0:01:36]} 27. Rxb7 {[%clk 0:02:20.6]} 27... O-O {[%clk 0:01:34.4]} 28. Nc6
{[%clk 0:02:16.6]} 28... Bxc6 {[%clk 0:01:12.3]} 29. bxc6 {[%clk 0:02:17.5]}
29... Bd6 {[%clk 0:01:09]} 30. c7 {[%clk 0:02:08.4]} 30... Qc8 {[%clk
0:01:04.1]} 31. Ba6 {[%clk 0:02:08.6]} 31... Nc4 {[%clk 0:00:58.3]} 32. Qb3
{[%clk 0:01:48]} 32... Bxc7 {[%clk 0:00:57.5]} 33. Bxc4 {[%clk 0:01:47.3]} 33...
Bf4 {[%clk 0:00:51.3]} 34. Rc2 {[%clk 0:01:46.9]} 34... dxc4 {[%clk 0:00:51.1]}
35. Rxc4 {[%clk 0:01:47.4]} 35... Qa8 {[%clk 0:00:47.8]} 36. g3 {[%clk 0:01:47]}
36... Be5 {[%clk 0:00:42.7]} 37. Ra4 {[%clk 0:01:46.9]} 37... Qc8 {[%clk
0:00:39.6]} 38. Raa7 {[%clk 0:01:47.3]} 38... g4 {[%clk 0:00:30.9]} 39. Qd1
{[%clk 0:01:40.3]} 39... Qc4 {[%clk 0:00:28.6]} 40. Ra4 {[%clk 0:01:36.5]} 40...
Qc6 {[%clk 0:00:22.8]} 41. Qxg4+ {[%clk 0:01:34]} 41... Kh8 {[%clk 0:00:22.4]}
42. Rb1 {[%clk 0:01:20.6]} 42... Rg8 {[%clk 0:00:21.3]} 43. Qe4 {[%clk
0:01:21.2]} 43... Qc7 {[%clk 0:00:19.5]} 44. Rc4 {[%clk 0:01:20.6]} 44... Qd6
{[%clk 0:00:19.1]} 45. Rc6 {[%clk 0:01:19.8]} 45... Qd4 {[%clk 0:00:16.4]} 46.
Qxd4 {[%clk 0:01:20.3]} 46... Bxd4 {[%clk 0:00:16.8]} 47. Kg2 {[%clk 0:01:19.3]}
47... Bf6 {[%clk 0:00:12.9]} 48. Rb7 {[%clk 0:01:19.3]} 48... Rf8 {[%clk
0:00:11.8]} 49. Rxf7 {[%clk 0:01:19.5]} 1-0

[Event "Late-Titled-Tuesday-Blitz-March-05-2024"]
[Site "Chess.com"]
[Date "2024.03.05"]
[Round "11"]
[White "stollenmonster"]
[Black "Harry_Rakkel"]
[Result "1-0"]
[WhiteElo "2901"]
[BlackElo "2728"]
[TimeControl "180+1"]
[EndTime "16:02:21 PST"]
[Termination "stollenmonster won on time"]

1. e4 {[%clk 0:03:00.9]} 1... c5 {[%clk 0:02:56.5]} 2. Nf3 {[%clk 0:03:00.7]}
2... e6 {[%clk 0:02:55.4]} 3. Be2 {[%clk 0:03:00.3]} 3... Nc6 {[%clk 0:02:52]}
4. c4 {[%clk 0:03:00.6]} 4... Nf6 {[%clk 0:02:49.9]} 5. Nc3 {[%clk 0:03:00.1]}
5... b6 {[%clk 0:02:46.2]} 6. O-O {[%clk 0:02:56]} 6... Bb7 {[%clk 0:02:45.7]}
7. d4 {[%clk 0:02:56.6]} 7... cxd4 {[%clk 0:02:44.5]} 8. Nxd4 {[%clk 0:02:57.5]}
8... Nxd4 {[%clk 0:02:43.7]} 9. Qxd4 {[%clk 0:02:58.4]} 9... Bc5 {[%clk
0:02:43.1]} 10. Qd3 {[%clk 0:02:58.5]} 10... Qb8 {[%clk 0:02:37.4]} 11. Bf3
{[%clk 0:02:31.6]} 11... h5 {[%clk 0:02:09.7]} 12. e5 {[%clk 0:02:00.6]} 12...
Ng4 {[%clk 0:02:08.1]} 13. Bxb7 {[%clk 0:01:59.5]} 13... Qxb7 {[%clk 0:02:05.8]}
14. Bf4 {[%clk 0:01:59.7]} 14... g5 {[%clk 0:01:56]} 15. Bxg5 {[%clk 0:01:50.1]}
15... Nxe5 {[%clk 0:01:48.9]} 16. Qe2 {[%clk 0:01:38.8]} 16... Ng4 {[%clk
0:01:32.5]} 17. Ne4 {[%clk 0:01:14.9]} 17... Rg8 {[%clk 0:00:57.1]} 18. h3
{[%clk 0:00:59.3]} 18... f5 {[%clk 0:00:51.7]} 19. Nxc5 {[%clk 0:00:56.4]} 19...
bxc5 {[%clk 0:00:50.1]} 20. f4 {[%clk 0:00:56.7]} 20... Rb8 {[%clk 0:00:27.2]}
21. b3 {[%clk 0:00:54.8]} 21... Kf7 {[%clk 0:00:08.8]} 22. hxg4 {[%clk
0:00:54.9]} 22... hxg4 {[%clk 0:00:09.7]} 23. Qe5 {[%clk 0:00:54.3]} 23... Rg6
{[%clk 0:00:08.6]} 24. Kf2 {[%clk 0:00:52.8]} 24... g3+ {[%clk 0:00:05.1]} 25.
Kxg3 {[%clk 0:00:43.1]} 25... Rbg8 {[%clk 0:00:04.8]} 26. Rf2 {[%clk 0:00:38.9]}
26... Rxg5+ {[%clk 0:00:04.7]} 27. fxg5 {[%clk 0:00:39.8]} 27... Rxg5+ {[%clk
0:00:05.1]} 28. Kh2 {[%clk 0:00:38.8]} 28... Qc8 {[%clk 0:00:05.6]} 29. Rd1
{[%clk 0:00:33.3]} 29... Kg6 {[%clk 0:00:03.7]} 30. Rd3 {[%clk 0:00:31.3]} 30...
Qe8 {[%clk 0:00:03]} 31. Rh3 {[%clk 0:00:31.4]} 1-0

[Event "Late-Titled-Tuesday-Blitz-March-05-2024"]
[Site "Chess.com"]
[Date "2024.03.05"]
[Round "11"]
[White "NtcPou"]
[Black "Viktor_Poddubnyi"]
[Result "1-0"]
[WhiteElo "2045"]
[BlackElo "2242"]
[TimeControl "180+1"]
[EndTime "16:02:21 PST"]
[Termination "NtcPou won on time"]

1. e4 {[%clk 0:03:00.9]} 1... g6 {[%clk 0:03:00.3]} 2. d4 {[%clk 0:02:57.3]}
2... Bg7 {[%clk 0:03:00.8]} 3. Nc3 {[%clk 0:02:56.5]} 3... d6 {[%clk 0:03:01.1]}
4. Be3 {[%clk 0:02:55.2]} 4... a6 {[%clk 0:03:01.4]} 5. Qd2 {[%clk 0:02:55.1]}
5... b5 {[%clk 0:03:01.6]} 6. a3 {[%clk 0:02:55.2]} 6... Bb7 {[%clk 0:03:01.8]}
7. Nf3 {[%clk 0:02:42.7]} 7... Nd7 {[%clk 0:02:58.6]} 8. Be2 {[%clk 0:02:35.8]}
8... c5 {[%clk 0:02:52]} 9. O-O {[%clk 0:02:25.3]} 9... Ngf6 {[%clk 0:02:34.4]}
10. d5 {[%clk 0:01:51.2]} 10... b4 {[%clk 0:02:18.2]} 11. axb4 {[%clk
0:01:41.4]} 11... cxb4 {[%clk 0:02:19.1]} 12. Na4 {[%clk 0:01:41.2]} 12... a5
{[%clk 0:02:08.2]} 13. Bd3 {[%clk 0:01:32.3]} 13... O-O {[%clk 0:01:58.4]} 14.
Bh6 {[%clk 0:01:26.8]} 14... e6 {[%clk 0:01:29.8]} 15. c4 {[%clk 0:01:13]} 15...
bxc3 {[%clk 0:01:05.1]} 16. Nxc3 {[%clk 0:01:11.9]} 16... exd5 {[%clk
0:01:04.6]} 17. Bxg7 {[%clk 0:01:04.8]} 17... Kxg7 {[%clk 0:01:01.6]} 18. exd5
{[%clk 0:01:00.1]} 18... Nb6 {[%clk 0:00:50.1]} 19. Nb5 {[%clk 0:00:56.7]} 19...
Nbxd5 {[%clk 0:00:42.9]} 20. Rfc1 {[%clk 0:00:50]} 20... Nb4 {[%clk 0:00:35.2]}
21. Rc7 {[%clk 0:00:39.7]} 21... Bxf3 {[%clk 0:00:26.1]} 22. gxf3 {[%clk
0:00:40.1]} 22... Nxd3 {[%clk 0:00:07.8]} 23. Qxd3 {[%clk 0:00:41]} 23... d5
{[%clk 0:00:08]} 24. Rac1 {[%clk 0:00:40]} 24... Qb8 {[%clk 0:00:06.3]} 25. Nd6
{[%clk 0:00:30.2]} 25... a4 {[%clk 0:00:06]} 26. Qd4 {[%clk 0:00:28.6]} 26... a3
{[%clk 0:00:04.3]} 27. bxa3 {[%clk 0:00:28.5]} 27... Rxa3 {[%clk 0:00:03.9]} 28.
R1c6 {[%clk 0:00:28.9]} 1-0

[Event "Late-Titled-Tuesday-Blitz-March-05-2024"]
[Site "Chess.com"]
[Date "2024.03.05"]
[Round "11"]
[White "Statham_01"]
[Black "ccccvhhhj"]
[Result "1-0"]
[WhiteElo "2579"]
[BlackElo "2469"]
[TimeControl "180+1"]
[EndTime "16:02:23 PST"]
[Termination "Statham_01 won by checkmate"]

1. e4 {[%clk 0:02:59.4]} 1... e6 {[%clk 0:02:57.2]} 2. d4 {[%clk 0:02:58]} 2...
d5 {[%clk 0:02:57.8]} 3. Nc3 {[%clk 0:02:58.5]} 3... Bb4 {[%clk 0:02:56.8]} 4.
Qg4 {[%clk 0:02:54.4]} 4... Nf6 {[%clk 0:02:56.6]} 5. Qxg7 {[%clk 0:02:54.2]}
5... Rg8 {[%clk 0:02:57.3]} 6. Qh6 {[%clk 0:02:54.4]} 6... Rg6 {[%clk
0:02:57.8]} 7. Qh4 {[%clk 0:02:54]} 7... Rg4 {[%clk 0:02:58.1]} 8. Qh6 {[%clk
0:02:50]} 8... Rg6 {[%clk 0:02:58.6]} 9. Qe3 {[%clk 0:02:47.6]} 9... Nxe4 {[%clk
0:02:56.8]} 10. Ne2 {[%clk 0:02:38.5]} 10... Nc6 {[%clk 0:02:52.8]} 11. a3
{[%clk 0:02:33.2]} 11... Ba5 {[%clk 0:02:49.6]} 12. b4 {[%clk 0:02:22.6]} 12...
Bb6 {[%clk 0:02:50]} 13. Nxe4 {[%clk 0:02:21.1]} 13... dxe4 {[%clk 0:02:50.9]}
14. Bb2 {[%clk 0:02:19.3]} 14... f5 {[%clk 0:02:46.9]} 15. O-O-O {[%clk
0:02:13.4]} 15... Bd7 {[%clk 0:02:30.2]} 16. Nf4 {[%clk 0:02:08.2]} 16... Rg8
{[%clk 0:02:24.8]} 17. Be2 {[%clk 0:02:07.3]} 17... Qg5 {[%clk 0:02:17.7]} 18.
h4 {[%clk 0:02:03.6]} 18... Qe7 {[%clk 0:02:14.6]} 19. Bh5+ {[%clk 0:02:01.2]}
19... Kd8 {[%clk 0:02:09]} 20. Qc3 {[%clk 0:01:47]} 20... Qd6 {[%clk 0:02:06.9]}
21. g3 {[%clk 0:01:16]} 21... Ne7 {[%clk 0:02:06.5]} 22. d5 {[%clk 0:01:00.8]}
22... exd5 {[%clk 0:02:04.1]} 23. Bf7 {[%clk 0:00:55.8]} 23... d4 {[%clk
0:02:00.2]} 24. Qb3 {[%clk 0:00:53.4]} 24... Rf8 {[%clk 0:01:50.1]} 25. Be6
{[%clk 0:00:29.1]} 25... Rf6 {[%clk 0:01:41.5]} 26. Bxd7 {[%clk 0:00:27.1]}
26... Qxd7 {[%clk 0:01:42.4]} 27. Bxd4 {[%clk 0:00:22.8]} 27... Bxd4 {[%clk
0:01:43.3]} 28. Rxd4 {[%clk 0:00:17.4]} 28... Rd6 {[%clk 0:01:43]} 29. Rhd1
{[%clk 0:00:15.7]} 29... a5 {[%clk 0:01:33.9]} 30. Qf7 {[%clk 0:00:14]} 30...
axb4 {[%clk 0:00:48.2]} 31. Ne6+ {[%clk 0:00:09.9]} 31... Kc8 {[%clk 0:00:48.5]}
32. Qf8+ {[%clk 0:00:08.2]} 32... Qd8 {[%clk 0:00:36.8]} 33. Qxd8+ {[%clk
0:00:07.3]} 33... Rxd8 {[%clk 0:00:36.6]} 34. Rxd8# {[%clk 0:00:07.3]} 1-0

[Event "Late-Titled-Tuesday-Blitz-March-05-2024"]
[Site "Chess.com"]
[Date "2024.03.05"]
[Round "11"]
[White "Bkmzzzzz"]
[Black "finec2"]
[Result "1-0"]
[WhiteElo "2392"]
[BlackElo "2217"]
[TimeControl "180+1"]
[EndTime "16:02:24 PST"]
[Termination "Bkmzzzzz won by checkmate"]

1. e4 {[%clk 0:03:00.9]} 1... c5 {[%clk 0:02:59.4]} 2. Nf3 {[%clk 0:03:01]} 2...
e6 {[%clk 0:02:59.5]} 3. d3 {[%clk 0:03:01]} 3... d5 {[%clk 0:02:59.7]} 4. Nbd2
{[%clk 0:02:59.8]} 4... Nc6 {[%clk 0:02:59.6]} 5. g3 {[%clk 0:02:59.2]} 5... Nf6
{[%clk 0:02:59.3]} 6. Bg2 {[%clk 0:02:58.8]} 6... Be7 {[%clk 0:02:59]} 7. O-O
{[%clk 0:02:58.5]} 7... O-O {[%clk 0:02:59.1]} 8. e5 {[%clk 0:02:57.4]} 8... Nd7
{[%clk 0:02:58.9]} 9. Re1 {[%clk 0:02:58]} 9... b5 {[%clk 0:02:58.6]} 10. Nf1
{[%clk 0:02:57.4]} 10... a5 {[%clk 0:02:58.5]} 11. h4 {[%clk 0:02:57.2]} 11...
a4 {[%clk 0:02:58.7]} 12. a3 {[%clk 0:02:57]} 12... b4 {[%clk 0:02:52.9]} 13. h5
{[%clk 0:02:57.1]} 13... Re8 {[%clk 0:02:43]} 14. h6 {[%clk 0:02:56]} 14... g6
{[%clk 0:02:42.8]} 15. N1h2 {[%clk 0:02:54.8]} 15... Qa5 {[%clk 0:02:26.1]} 16.
Ng4 {[%clk 0:02:51]} 16... Ba6 {[%clk 0:02:24.1]} 17. Bg5 {[%clk 0:02:48.5]}
17... Bf8 {[%clk 0:02:19.8]} 18. Qc1 {[%clk 0:02:35.6]} 18... Rac8 {[%clk
0:02:08.2]} 19. Qf4 {[%clk 0:02:34.4]} 19... c4 {[%clk 0:01:41.6]} 20. Bf1
{[%clk 0:01:56.9]} 20... c3 {[%clk 0:01:40.7]} 21. bxc3 {[%clk 0:01:56.7]} 21...
bxa3 {[%clk 0:01:39.1]} 22. Bf6 {[%clk 0:01:32.5]} 22... Qxc3 {[%clk 0:01:27.3]}
23. Ng5 {[%clk 0:01:31.5]} 23... Rc7 {[%clk 0:01:25.1]} 24. Bg7 {[%clk
0:01:15.9]} 24... Re7 {[%clk 0:00:52]} 25. Qf6 {[%clk 0:00:34.5]} 25... Nd4
{[%clk 0:00:16.6]} 26. Bxf8 {[%clk 0:00:08.6]} 26... Nxf6 {[%clk 0:00:16.5]} 27.
Nxf6+ {[%clk 0:00:07.1]} 27... Kxf8 {[%clk 0:00:16.8]} 28. Ngxh7# {[%clk
0:00:07.8]} 1-0